[Event "*** Titled Tuesday 3|2 Blitz"]
[Site "Chess.com"]
[Date "2015.04.07"]
[Round "7"]
[White "DanielRensch"]
[Black "ilmago"]
[Result "1-0"]
[WhiteElo "2234"]
[BlackElo "1892"]
[TimeControl "180+2"]
[EndTime "12:30:38 PDT"]
[Termination "DanielRensch won by resignation"]

1. e4 {[%clk 0:03:01.9]} 1... c5 {[%clk 0:02:59.2]} 2. Nf3 {[%clk 0:03:02.3]}
2... d6 {[%clk 0:02:59.7]} 3. d4 {[%clk 0:03:03.4]} 3... cxd4 {[%clk 0:03:01]}
4. Nxd4 {[%clk 0:03:05.3]} 4... Nf6 {[%clk 0:03:02.3]} 5. Nc3 {[%clk 0:03:06.7]}
5... e6 {[%clk 0:03:03.8]} 6. Be3 {[%clk 0:03:07.7]} 6... a6 {[%clk 0:03:04.2]}
7. g4 {[%clk 0:03:08.2]} 7... Be7 {[%clk 0:03:01.5]} 8. g5 {[%clk 0:03:08.7]}
8... Nfd7 {[%clk 0:03:02.1]} 9. Qd2 {[%clk 0:03:10.2]} 9... Nc6 {[%clk
0:03:00.4]} 10. f4 {[%clk 0:03:10.9]} 10... Qc7 {[%clk 0:02:57]} 11. f5 {[%clk
0:03:08.5]} 11... Nc5 {[%clk 0:02:52.6]} 12. Bg2 {[%clk 0:03:00.9]} 12... Ne5
{[%clk 0:02:50.3]} 13. b3 {[%clk 0:02:55.5]} 13... Bd7 {[%clk 0:02:47.4]} 14.
O-O {[%clk 0:02:47.6]} 14... Rc8 {[%clk 0:02:47.2]} 15. fxe6 {[%clk 0:02:32.1]}
15... fxe6 {[%clk 0:02:46.6]} 16. Nde2 {[%clk 0:02:25.3]} 16... b5 {[%clk
0:02:30.7]} 17. a3 {[%clk 0:02:21.7]} 17... Bc6 {[%clk 0:02:22.6]} 18. Nd4
{[%clk 0:02:07.1]} 18... Bb7 {[%clk 0:02:14.5]} 19. b4 {[%clk 0:02:05.5]} 19...
Nc4 {[%clk 0:01:53.1]} 20. Qe2 {[%clk 0:01:51.4]} 20... Nxe3 {[%clk 0:01:49.5]}
21. Qxe3 {[%clk 0:01:52.3]} 21... Nd7 {[%clk 0:01:43.8]} 22. Nce2 {[%clk
0:01:52.3]} 22... Ne5 {[%clk 0:01:32.3]} 23. Nxe6 {[%clk 0:01:47.4]} 23... Qc4
{[%clk 0:01:32.6]} 24. Nxg7+ {[%clk 0:01:41.5]} 24... Kd8 {[%clk 0:01:33.5]} 25.
Nd4 {[%clk 0:01:38.5]} 25... Kc7 {[%clk 0:01:23]} 26. a4 {[%clk 0:01:35.9]}
26... Rhg8 {[%clk 0:01:21]} 27. Nge6+ {[%clk 0:01:35.7]} 27... Kb8 {[%clk
0:01:21.1]} 28. axb5 {[%clk 0:01:35.5]} 28... h6 {[%clk 0:01:02.5]} 29. bxa6
{[%clk 0:01:33.8]} 29... Bxg5 {[%clk 0:00:57.1]} 30. Nxg5 {[%clk 0:01:32.2]}
30... Rxg5 {[%clk 0:00:56.5]} 31. axb7 {[%clk 0:01:29.2]} 31... Kxb7 {[%clk
0:00:57.6]} 32. Nf3 {[%clk 0:01:22.2]} 32... Rxg2+ {[%clk 0:00:56.1]} 33. Kxg2
{[%clk 0:01:22.4]} 33... Rg8+ {[%clk 0:00:52.8]} 34. Kh1 {[%clk 0:01:22.9]}
34... Nc6 {[%clk 0:00:53.2]} 35. b5 {[%clk 0:01:20.5]} 1-0

[Event "*** Titled Tuesday 3|2 Blitz"]
[Site "Chess.com"]
[Date "2015.04.07"]
[Round "7"]
[White "GasconJR"]
[Black "rhungaski"]
[Result "0-1"]
[WhiteElo "2280"]
[BlackElo "2448"]
[TimeControl "180+2"]
[EndTime "12:30:48 PDT"]
[Termination "rhungaski won by resignation"]

1. e4 {[%clk 0:03:01.9]} 1... d6 {[%clk 0:02:56]} 2. d4 {[%clk 0:03:02.3]} 2...
Nf6 {[%clk 0:02:56.1]} 3. Nc3 {[%clk 0:03:03.4]} 3... e5 {[%clk 0:02:57.6]} 4.
Nf3 {[%clk 0:03:04.2]} 4... Nbd7 {[%clk 0:02:58.3]} 5. g4 {[%clk 0:03:05.3]}
5... Nxg4 {[%clk 0:02:55.7]} 6. Rg1 {[%clk 0:03:05.5]} 6... Ngf6 {[%clk
0:02:54.7]} 7. Bc4 {[%clk 0:03:04.9]} 7... h6 {[%clk 0:02:52.2]} 8. Be3 {[%clk
0:03:03]} 8... c6 {[%clk 0:02:52.6]} 9. dxe5 {[%clk 0:03:03.3]} 9... dxe5 {[%clk
0:02:52.3]} 10. Qd3 {[%clk 0:03:04.3]} 10... b5 {[%clk 0:02:37.8]} 11. Bxf7+
{[%clk 0:03:01.8]} 11... Kxf7 {[%clk 0:02:38]} 12. Nxe5+ {[%clk 0:03:03.1]}
12... Nxe5 {[%clk 0:02:34.1]} 13. Qxd8 {[%clk 0:03:04]} 13... Nf3+ {[%clk
0:02:33.9]} 14. Kd1 {[%clk 0:03:05.4]} 14... Nxg1 {[%clk 0:02:29]} 15. Qc7+
{[%clk 0:02:55]} 15... Be7 {[%clk 0:02:12.5]} 16. f4 {[%clk 0:02:12.6]} 16...
Bg4+ {[%clk 0:02:02.1]} 17. Ke1 {[%clk 0:02:04.3]} 17... Rhc8 {[%clk 0:01:56.9]}
18. Qb7 {[%clk 0:01:56.9]} 18... b4 {[%clk 0:01:05.8]} 19. Bc5 {[%clk
0:00:36.3]} 19... Nf3+ {[%clk 0:01:03.9]} 20. Kf2 {[%clk 0:00:35]} 20... bxc3
{[%clk 0:01:02.8]} 21. Qxe7+ {[%clk 0:00:32]} 21... Kg8 {[%clk 0:01:03.8]} 22.
e5 {[%clk 0:00:04.7]} 22... Re8 {[%clk 0:00:46.4]} 23. Qd6 {[%clk 0:00:04.1]}
0-1

[Event "*** Titled Tuesday 3|2 Blitz"]
[Site "Chess.com"]
[Date "2015.04.07"]
[Round "7"]
[White "Recombinant"]
[Black "BjarkeSahl"]
[Result "1-0"]
[WhiteElo "2151"]
[BlackElo "2040"]
[TimeControl "180+2"]
[EndTime "12:30:52 PDT"]
[Termination "Recombinant won on time"]

1. e4 {[%clk 0:03:01.9]} 1... c6 {[%clk 0:03:00]} 2. d4 {[%clk 0:03:02.3]} 2...
d5 {[%clk 0:03:00.9]} 3. Nc3 {[%clk 0:02:59.8]} 3... dxe4 {[%clk 0:03:01.8]} 4.
Nxe4 {[%clk 0:03:00.5]} 4... Nf6 {[%clk 0:03:03.4]} 5. Nxf6+ {[%clk 0:03:00.1]}
5... exf6 {[%clk 0:03:04.6]} 6. c3 {[%clk 0:02:59.2]} 6... Bd6 {[%clk
0:03:05.8]} 7. Bd3 {[%clk 0:03:00.5]} 7... O-O {[%clk 0:03:05.7]} 8. Ne2 {[%clk
0:03:01.4]} 8... Qc7 {[%clk 0:03:05.2]} 9. Qc2 {[%clk 0:03:02.4]} 9... g6 {[%clk
0:03:02]} 10. Bh6 {[%clk 0:03:02]} 10... Rd8 {[%clk 0:03:03.4]} 11. O-O-O {[%clk
0:03:01.4]} 11... Be6 {[%clk 0:03:04.9]} 12. h4 {[%clk 0:03:00.9]} 12... a5
{[%clk 0:02:48.8]} 13. h5 {[%clk 0:03:00.5]} 13... g5 {[%clk 0:02:41.2]} 14.
Bxh7+ {[%clk 0:03:00.3]} 14... Kh8 {[%clk 0:02:42.2]} 15. Kb1 {[%clk 0:02:46.4]}
15... a4 {[%clk 0:02:32]} 16. g3 {[%clk 0:02:35.5]} 16... Ra5 {[%clk 0:02:19]}
17. f4 {[%clk 0:02:30.7]} 17... g4 {[%clk 0:02:02.2]} 18. Bd3 {[%clk 0:02:23.9]}
18... Na6 {[%clk 0:01:45.1]} 19. f5 {[%clk 0:02:22.5]} 19... Bd5 {[%clk
0:01:39.9]} 20. Rhf1 {[%clk 0:02:09.6]} 20... b5 {[%clk 0:01:00.3]} 21. Bf4
{[%clk 0:02:07.4]} 21... Bf3 {[%clk 0:00:30.1]} 22. Rde1 {[%clk 0:02:03.4]}
22... Qd7 {[%clk 0:00:21.5]} 23. Bxd6 {[%clk 0:01:13.3]} 23... Qxd6 {[%clk
0:00:21.6]} 24. Nf4 {[%clk 0:01:14.3]} 24... Nc7 {[%clk 0:00:19.2]} 25. Be2
{[%clk 0:01:10.9]} 25... Bxe2 {[%clk 0:00:04]} 26. Qxe2 {[%clk 0:01:11.2]} 26...
Rg8 {[%clk 0:00:05.4]} 27. Ng6+ {[%clk 0:01:04]} 1-0

[Event "*** Titled Tuesday 3|2 Blitz"]
[Site "Chess.com"]
[Date "2015.04.07"]
[Round "7"]
[White "lukas_111111"]
[Black "MattyDPerrine"]
[Result "1-0"]
[WhiteElo "2331"]
[BlackElo "2198"]
[TimeControl "180+2"]
[EndTime "12:31:08 PDT"]
[Termination "lukas_111111 won by resignation"]

1. d4 {[%clk 0:02:58.5]} 1... Nf6 {[%clk 0:03:00.6]} 2. c4 {[%clk 0:02:58.9]}
2... c5 {[%clk 0:03:02]} 3. d5 {[%clk 0:02:59]} 3... b5 {[%clk 0:03:03.4]} 4.
cxb5 {[%clk 0:02:58.8]} 4... a6 {[%clk 0:03:04.9]} 5. bxa6 {[%clk 0:02:58.8]}
5... g6 {[%clk 0:03:06.3]} 6. Nc3 {[%clk 0:02:59.4]} 6... Bxa6 {[%clk
0:03:05.4]} 7. e4 {[%clk 0:02:59.5]} 7... Bxf1 {[%clk 0:03:07.3]} 8. Kxf1 {[%clk
0:03:00.6]} 8... d6 {[%clk 0:03:09]} 9. g3 {[%clk 0:03:01.7]} 9... Bg7 {[%clk
0:03:10.3]} 10. Kg2 {[%clk 0:03:03.2]} 10... O-O {[%clk 0:03:12]} 11. Nf3 {[%clk
0:03:04.4]} 11... Nbd7 {[%clk 0:03:13.6]} 12. a4 {[%clk 0:03:04.5]} 12... Qa5
{[%clk 0:03:14.7]} 13. Bd2 {[%clk 0:03:04.6]} 13... Qb4 {[%clk 0:03:14.8]} 14.
Qc2 {[%clk 0:03:02.6]} 14... Rfb8 {[%clk 0:03:15.4]} 15. Rhb1 {[%clk 0:02:37.6]}
15... Qb3 {[%clk 0:03:03.3]} 16. Qd3 {[%clk 0:02:31.5]} 16... Nb6 {[%clk
0:02:38.5]} 17. Ra3 {[%clk 0:02:08.8]} 17... Qb4 {[%clk 0:02:29.9]} 18. a5
{[%clk 0:01:54.5]} 18... Nc4 {[%clk 0:02:15.2]} 19. Ra4 {[%clk 0:01:54.3]} 19...
Nxb2 {[%clk 0:01:10.3]} 20. Rxb4 {[%clk 0:01:51.4]} 20... Rxb4 {[%clk
0:01:10.6]} 21. Qc2 {[%clk 0:01:46.3]} 21... Nc4 {[%clk 0:01:00.7]} 22. Rxb4
{[%clk 0:01:31.8]} 22... cxb4 {[%clk 0:01:02.6]} 23. Nd1 {[%clk 0:01:29.4]}
23... Nxd2 {[%clk 0:01:00.2]} 24. Nxd2 {[%clk 0:01:30.4]} 24... Rxa5 {[%clk
0:00:59.3]} 25. Qc8+ {[%clk 0:01:30.9]} 25... Bf8 {[%clk 0:01:00.8]} 26. Qb8
{[%clk 0:01:26.7]} 26... Ra1 {[%clk 0:00:59.7]} 27. Ne3 {[%clk 0:01:23.2]} 27...
Ra2 {[%clk 0:00:59.5]} 28. Qxb4 {[%clk 0:01:22.5]} 28... h5 {[%clk 0:00:59.8]}
29. h4 {[%clk 0:01:21]} 29... Bh6 {[%clk 0:00:58]} 30. Ndf1 {[%clk 0:01:13.6]}
30... Kg7 {[%clk 0:00:50.7]} 31. Qb3 {[%clk 0:01:13.2]} 31... Ra1 {[%clk
0:00:41.7]} 32. Qc3 {[%clk 0:01:10]} 32... Ra4 {[%clk 0:00:41.2]} 33. e5 {[%clk
0:01:05.8]} 33... dxe5 {[%clk 0:00:36.8]} 34. Qxe5 {[%clk 0:01:06.1]} 34... Re4
{[%clk 0:00:38.7]} 35. Qc3 {[%clk 0:01:03.9]} 35... Kh7 {[%clk 0:00:37.5]} 36.
d6 {[%clk 0:01:03.9]} 36... Ng8 {[%clk 0:00:32]} 37. d7 {[%clk 0:01:03.3]} 1-0

[Event "*** Titled Tuesday 3|2 Blitz"]
[Site "Chess.com"]
[Date "2015.04.07"]
[Round "7"]
[White "kesarev"]
[Black "brauliocuarta"]
[Result "0-1"]
[WhiteElo "2210"]
[BlackElo "2088"]
[TimeControl "180+2"]
[EndTime "12:31:58 PDT"]
[Termination "brauliocuarta won on time"]

1. Nf3 {[%clk 0:03:01.7]} 1... Nf6 {[%clk 0:02:59.5]} 2. c4 {[%clk 0:03:00]}
2... c5 {[%clk 0:03:00.1]} 3. Nc3 {[%clk 0:02:59.6]} 3... b6 {[%clk 0:03:01]} 4.
d4 {[%clk 0:02:54.6]} 4... cxd4 {[%clk 0:03:01.7]} 5. Nxd4 {[%clk 0:02:56.2]}
5... Bb7 {[%clk 0:03:02.7]} 6. f3 {[%clk 0:02:57.3]} 6... d6 {[%clk 0:03:02.7]}
7. e4 {[%clk 0:02:58.8]} 7... e6 {[%clk 0:03:03.9]} 8. Be2 {[%clk 0:02:59.9]}
8... Be7 {[%clk 0:03:05.2]} 9. Be3 {[%clk 0:03:01.4]} 9... O-O {[%clk
0:03:05.7]} 10. O-O {[%clk 0:03:02.9]} 10... a6 {[%clk 0:03:06.5]} 11. Qd2
{[%clk 0:02:59.8]} 11... Nbd7 {[%clk 0:03:07.9]} 12. Rfc1 {[%clk 0:02:58.5]}
12... Rc8 {[%clk 0:02:59.2]} 13. Bf1 {[%clk 0:02:54]} 13... Qc7 {[%clk
0:02:52.7]} 14. Qf2 {[%clk 0:02:48.3]} 14... Rfd8 {[%clk 0:02:36.9]} 15. a4
{[%clk 0:02:45.6]} 15... Ne5 {[%clk 0:02:22.8]} 16. a5 {[%clk 0:02:25.8]} 16...
bxa5 {[%clk 0:02:21.7]} 17. Nb3 {[%clk 0:02:20.3]} 17... Qb8 {[%clk 0:01:55.4]}
18. Nxa5 {[%clk 0:02:08.9]} 18... Nfd7 {[%clk 0:01:41.8]} 19. Rab1 {[%clk
0:01:39]} 19... Nc5 {[%clk 0:01:12.4]} 20. Rd1 {[%clk 0:01:38.8]} 20... Bf6
{[%clk 0:00:50.7]} 21. Qd2 {[%clk 0:00:39.9]} 21... Nc6 {[%clk 0:00:48.2]} 22.
Nxb7 {[%clk 0:00:26.6]} 22... Qxb7 {[%clk 0:00:46.1]} 23. b4 {[%clk 0:00:18.7]}
23... Nxb4 {[%clk 0:00:45.5]} 24. Nd5 {[%clk 0:00:09.4]} 24... exd5 {[%clk
0:00:26.5]} 25. Rxb4 {[%clk 0:00:09.8]} 25... Qe7 {[%clk 0:00:20]} 26. cxd5
{[%clk 0:00:10.5]} 26... a5 {[%clk 0:00:18.4]} 27. Rb5 {[%clk 0:00:10.1]} 27...
Ra8 {[%clk 0:00:14.3]} 28. Qa2 {[%clk 0:00:06.9]} 28... a4 {[%clk 0:00:14.7]}
29. Rdb1 {[%clk 0:00:06.7]} 29... a3 {[%clk 0:00:13.8]} 30. Bc4 {[%clk
0:00:05.4]} 30... Bb2 {[%clk 0:00:13.9]} 0-1

[Event "*** Titled Tuesday 3|2 Blitz"]
[Site "Chess.com"]
[Date "2015.04.07"]
[Round "7"]
[White "chessloveyou"]
[Black "Mazetovic"]
[Result "0-1"]
[WhiteElo "2128"]
[BlackElo "2430"]
[TimeControl "180+2"]
[EndTime "12:32:35 PDT"]
[Termination "Mazetovic won by resignation"]

1. d4 {[%clk 0:03:00.9]} 1... Nf6 {[%clk 0:02:58]} 2. Nf3 {[%clk 0:03:00.8]}
2... g6 {[%clk 0:02:55.4]} 3. g3 {[%clk 0:02:55.7]} 3... Bg7 {[%clk 0:02:54.8]}
4. Bg2 {[%clk 0:02:56.4]} 4... O-O {[%clk 0:02:46.6]} 5. O-O {[%clk 0:02:56.7]}
5... c6 {[%clk 0:02:27]} 6. c4 {[%clk 0:02:52.9]} 6... d5 {[%clk 0:02:23.8]} 7.
cxd5 {[%clk 0:02:51.5]} 7... Nxd5 {[%clk 0:02:23.1]} 8. Nc3 {[%clk 0:02:51.7]}
8... Nb6 {[%clk 0:02:21]} 9. e4 {[%clk 0:02:32.5]} 9... N8d7 {[%clk 0:02:20.8]}
10. b3 {[%clk 0:02:19.7]} 10... c5 {[%clk 0:02:11.3]} 11. Be3 {[%clk 0:02:18.2]}
11... cxd4 {[%clk 0:02:12]} 12. Bxd4 {[%clk 0:02:17.5]} 12... Bxd4 {[%clk
0:02:10.7]} 13. Qxd4 {[%clk 0:02:17.3]} 13... Nf6 {[%clk 0:02:10.2]} 14. Qe3
{[%clk 0:01:58.9]} 14... Bd7 {[%clk 0:01:40.4]} 15. Rfd1 {[%clk 0:01:53.1]}
15... Qe8 {[%clk 0:01:34.5]} 16. h3 {[%clk 0:01:45.6]} 16... Bc6 {[%clk
0:01:17.1]} 17. e5 {[%clk 0:00:36.3]} 17... Nfd5 {[%clk 0:00:59.4]} 18. Nxd5
{[%clk 0:00:35.3]} 18... Nxd5 {[%clk 0:00:54.5]} 19. Qh6 {[%clk 0:00:35]} 19...
f6 {[%clk 0:00:53.2]} 20. Rd4 {[%clk 0:00:13.2]} 20... Rd8 {[%clk 0:00:50.7]}
21. e6 {[%clk 0:00:10.7]} 21... g5 {[%clk 0:00:46.8]} 22. Nxg5 {[%clk
0:00:10.2]} 22... fxg5 {[%clk 0:00:47.2]} 23. Qxg5+ {[%clk 0:00:10.8]} 23... Qg6
{[%clk 0:00:47.8]} 24. Qd2 {[%clk 0:00:10.3]} 24... Kh8 {[%clk 0:00:43.3]} 25.
Bxd5 {[%clk 0:00:10.6]} 25... Bxd5 {[%clk 0:00:44]} 26. Rxd5 {[%clk 0:00:11.9]}
26... Rxd5 {[%clk 0:00:34.3]} 27. Qxd5 {[%clk 0:00:12.8]} 27... Qf6 {[%clk
0:00:33.1]} 28. Rf1 {[%clk 0:00:13]} 28... b6 {[%clk 0:00:34.2]} 29. Qe4 {[%clk
0:00:13.2]} 29... Rd8 {[%clk 0:00:31.8]} 30. Re1 {[%clk 0:00:13.7]} 30... Rd2
{[%clk 0:00:32.1]} 31. Qa8+ {[%clk 0:00:14.1]} 31... Kg7 {[%clk 0:00:31.8]} 32.
Rf1 {[%clk 0:00:14.5]} 32... Rxa2 {[%clk 0:00:31.9]} 33. Qe4 {[%clk 0:00:14.8]}
33... Rb2 {[%clk 0:00:29.2]} 34. Qg4+ {[%clk 0:00:15]} 34... Qg6 {[%clk
0:00:30.1]} 35. Qd4+ {[%clk 0:00:15.9]} 35... Qf6 {[%clk 0:00:30.9]} 36. Qg4+
{[%clk 0:00:17]} 36... Kh6 {[%clk 0:00:30.9]} 37. Qc4 {[%clk 0:00:15.5]} 37...
Rd2 {[%clk 0:00:28.2]} 38. Qc1 {[%clk 0:00:15.9]} 38... Qd4 {[%clk 0:00:23.2]}
39. Rd1 {[%clk 0:00:16.5]} 39... Qxf2+ {[%clk 0:00:23.9]} 0-1

[Event "*** Titled Tuesday 3|2 Blitz"]
[Site "Chess.com"]
[Date "2015.04.07"]
[Round "7"]
[White "AnthonyWirig"]
[Black "bugsbunny444"]
[Result "0-1"]
[WhiteElo "2455"]
[BlackElo "2320"]
[TimeControl "180+2"]
[EndTime "12:33:59 PDT"]
[Termination "bugsbunny444 won by resignation"]

1. g3 {[%clk 0:02:57.7]} 1... d5 {[%clk 0:02:55.8]} 2. Bg2 {[%clk 0:02:53.9]}
2... e5 {[%clk 0:02:56.7]} 3. b3 {[%clk 0:02:48.8]} 3... Nc6 {[%clk 0:02:57.3]}
4. Bb2 {[%clk 0:02:50.4]} 4... Be6 {[%clk 0:02:58.4]} 5. e3 {[%clk 0:02:50.3]}
5... Qd7 {[%clk 0:02:57.6]} 6. d3 {[%clk 0:02:50.6]} 6... O-O-O {[%clk
0:02:58.1]} 7. a3 {[%clk 0:02:51.3]} 7... h5 {[%clk 0:02:57.2]} 8. h3 {[%clk
0:02:52]} 8... h4 {[%clk 0:02:41.2]} 9. g4 {[%clk 0:02:51.4]} 9... f5 {[%clk
0:02:38.6]} 10. gxf5 {[%clk 0:02:52.6]} 10... Bxf5 {[%clk 0:02:40]} 11. Nd2
{[%clk 0:02:53.1]} 11... Nf6 {[%clk 0:02:29.6]} 12. Qe2 {[%clk 0:02:44.2]} 12...
Bg6 {[%clk 0:02:08.2]} 13. O-O-O {[%clk 0:02:37.8]} 13... Bh5 {[%clk 0:02:09.3]}
14. Bf3 {[%clk 0:02:38.9]} 14... Qf5 {[%clk 0:01:53.3]} 15. Bxh5 {[%clk
0:02:29]} 15... Qxh5 {[%clk 0:01:36.7]} 16. f3 {[%clk 0:02:11.4]} 16... Bc5
{[%clk 0:01:23.6]} 17. Kb1 {[%clk 0:02:07.9]} 17... Rhe8 {[%clk 0:01:14.6]} 18.
e4 {[%clk 0:02:01.6]} 18... Nd4 {[%clk 0:01:11.4]} 19. Qf1 {[%clk 0:01:36.9]}
19... Qh6 {[%clk 0:00:58.7]} 20. Ne2 {[%clk 0:01:17.1]} 20... Nxe2 {[%clk
0:00:59.7]} 21. Qxe2 {[%clk 0:01:19]} 21... Nh5 {[%clk 0:01:01.3]} 22. Qg2
{[%clk 0:01:14.2]} 22... Ng3 {[%clk 0:00:57.2]} 23. Rhe1 {[%clk 0:01:12.8]}
23... Be3 {[%clk 0:00:30.5]} 24. Nf1 {[%clk 0:00:57.6]} 24... Bf4 {[%clk
0:00:29.3]} 25. exd5 {[%clk 0:00:55.4]} 25... Rxd5 {[%clk 0:00:28.2]} 26. Nh2
{[%clk 0:00:50.8]} 26... Qg5 {[%clk 0:00:13.6]} 27. Ng4 {[%clk 0:00:51.2]} 27...
Rd7 {[%clk 0:00:09]} 28. Qf2 {[%clk 0:00:43.7]} 28... Kb8 {[%clk 0:00:08]} 29.
Qc5 {[%clk 0:00:41.9]} 29... Qe7 {[%clk 0:00:08.5]} 30. Qb5 {[%clk 0:00:38.8]}
30... a6 {[%clk 0:00:08.4]} 31. Qa5 {[%clk 0:00:39.1]} 31... Qd6 {[%clk
0:00:05.8]} 32. Nxe5 {[%clk 0:00:30.2]} 32... Rde7 {[%clk 0:00:06.6]} 33. Nc4
{[%clk 0:00:30.3]} 33... Rxe1 {[%clk 0:00:04.3]} 34. Rxe1 {[%clk 0:00:29.4]}
34... Qd7 {[%clk 0:00:03.8]} 35. Rxe8+ {[%clk 0:00:15.1]} 35... Qxe8 {[%clk
0:00:05.7]} 36. Be5 {[%clk 0:00:15.1]} 36... Bxe5 {[%clk 0:00:03.4]} 37. Qxe5
{[%clk 0:00:10.6]} 37... Qd7 {[%clk 0:00:04.8]} 38. Nb6 {[%clk 0:00:03.4]} 38...
Qxh3 {[%clk 0:00:05.9]} 39. Qe8+ {[%clk 0:00:05]} 39... Ka7 {[%clk 0:00:07.3]}
40. Nc8+ {[%clk 0:00:06.4]} 40... Kb8 {[%clk 0:00:08.6]} 41. Ne7+ {[%clk
0:00:08.1]} 41... Ka7 {[%clk 0:00:08.9]} 42. Nc8+ {[%clk 0:00:09.6]} 42... Kb8
{[%clk 0:00:10.2]} 43. Ne7+ {[%clk 0:00:09.3]} 43... Ka7 {[%clk 0:00:11.6]} 44.
Kb2 {[%clk 0:00:10.9]} 44... Qf1 {[%clk 0:00:05.5]} 45. Nc8+ {[%clk 0:00:10.8]}
45... Kb8 {[%clk 0:00:06.9]} 46. a4 {[%clk 0:00:09.7]} 46... Qxf3 {[%clk
0:00:07.8]} 47. Ne7+ {[%clk 0:00:06.3]} 47... Ka7 {[%clk 0:00:08.6]} 48. Nc8+
{[%clk 0:00:08.2]} 48... Kb8 {[%clk 0:00:10.1]} 49. a5 {[%clk 0:00:09.2]} 49...
Qf6+ {[%clk 0:00:10]} 50. Ka2 {[%clk 0:00:10.3]} 50... Qc6 {[%clk 0:00:10.5]}
51. Qf8 {[%clk 0:00:05.5]} 51... Qxc2+ {[%clk 0:00:11.3]} 52. Ka3 {[%clk
0:00:07.4]} 52... Qc1+ {[%clk 0:00:08.8]} 53. Ka2 {[%clk 0:00:08.5]} 53... Qc2+
{[%clk 0:00:09.6]} 54. Ka3 {[%clk 0:00:10.1]} 54... Qc1+ {[%clk 0:00:10.4]} 55.
Kb4 {[%clk 0:00:09.2]} 55... c5+ {[%clk 0:00:06.1]} 0-1

[Event "*** Titled Tuesday 3|2 Blitz"]
[Site "Chess.com"]
[Date "2015.04.07"]
[Round "7"]
[White "1stSecond"]
[Black "MITerryble"]
[Result "0-1"]
[WhiteElo "2389"]
[BlackElo "2501"]
[TimeControl "180+2"]
[EndTime "12:34:30 PDT"]
[Termination "MITerryble won by resignation"]

1. d4 {[%clk 0:03:01.9]} 1... e6 {[%clk 0:03:00.5]} 2. Nf3 {[%clk 0:03:02]} 2...
Nf6 {[%clk 0:03:01.3]} 3. c4 {[%clk 0:03:03]} 3... Bb4+ {[%clk 0:03:01.7]} 4.
Nbd2 {[%clk 0:03:01.7]} 4... O-O {[%clk 0:03:02]} 5. g3 {[%clk 0:03:02.7]} 5...
d5 {[%clk 0:03:02.6]} 6. Bg2 {[%clk 0:03:01.8]} 6... dxc4 {[%clk 0:02:54]} 7.
O-O {[%clk 0:03:02.3]} 7... Nc6 {[%clk 0:02:46.1]} 8. Nxc4 {[%clk 0:03:02.3]}
8... Bd6 {[%clk 0:02:31.9]} 9. a3 {[%clk 0:03:00]} 9... Qe7 {[%clk 0:02:30]} 10.
Nfe5 {[%clk 0:02:57.6]} 10... Bxe5 {[%clk 0:02:27]} 11. dxe5 {[%clk 0:02:57.2]}
11... Nd5 {[%clk 0:02:28.2]} 12. e3 {[%clk 0:02:40.9]} 12... b5 {[%clk
0:02:18.6]} 13. Nd2 {[%clk 0:02:27.3]} 13... Nxe5 {[%clk 0:02:18.5]} 14. Nf3
{[%clk 0:02:25.6]} 14... Nxf3+ {[%clk 0:02:17.5]} 15. Qxf3 {[%clk 0:02:26.1]}
15... Bb7 {[%clk 0:02:17.8]} 16. Bd2 {[%clk 0:02:27.1]} 16... c5 {[%clk
0:02:18.4]} 17. Rac1 {[%clk 0:02:23.5]} 17... Rac8 {[%clk 0:02:18.1]} 18. Rfd1
{[%clk 0:02:21.9]} 18... Rfe8 {[%clk 0:02:10.7]} 19. e4 {[%clk 0:02:22.4]} 19...
Nf6 {[%clk 0:02:08.1]} 20. Qe3 {[%clk 0:02:23]} 20... Nd7 {[%clk 0:01:25]} 21.
Bc3 {[%clk 0:02:22.2]} 21... Nb6 {[%clk 0:01:24.2]} 22. Qf4 {[%clk 0:02:15.3]}
22... e5 {[%clk 0:01:23]} 23. Qe3 {[%clk 0:02:08.8]} 23... Nc4 {[%clk
0:00:55.6]} 24. Qe2 {[%clk 0:02:09.3]} 24... a6 {[%clk 0:00:56.9]} 25. Rd3
{[%clk 0:02:05.6]} 25... Rcd8 {[%clk 0:00:55.7]} 26. Rcd1 {[%clk 0:02:06.5]}
26... h6 {[%clk 0:00:55.4]} 27. h4 {[%clk 0:02:04.9]} 27... Bc8 {[%clk
0:00:51.8]} 28. b3 {[%clk 0:01:57.4]} 28... Rxd3 {[%clk 0:00:45.4]} 29. Qxd3
{[%clk 0:01:56.6]} 29... Nxa3 {[%clk 0:00:46.6]} 30. Ba5 {[%clk 0:01:57.4]}
30... c4 {[%clk 0:00:41.6]} 31. Qc3 {[%clk 0:01:58.4]} 31... Bg4 {[%clk
0:00:25.6]} 32. Ra1 {[%clk 0:01:55]} 32... b4 {[%clk 0:00:22.3]} 33. Bxb4 {[%clk
0:01:50.6]} 33... Nb5 {[%clk 0:00:23.3]} 34. Qxc4 {[%clk 0:01:49.1]} 34... Qb7
{[%clk 0:00:24.3]} 35. Qd5 {[%clk 0:01:42]} 35... Qb8 {[%clk 0:00:25.5]} 36.
Rxa6 {[%clk 0:01:39.5]} 36... Nc7 {[%clk 0:00:26.4]} 37. Bd6 {[%clk 0:01:38.2]}
37... Qc8 {[%clk 0:00:21.1]} 38. Bxc7 {[%clk 0:01:33.4]} 38... Qxa6 {[%clk
0:00:21.8]} 39. Bxe5 {[%clk 0:01:34.9]} 39... Be6 {[%clk 0:00:20.8]} 40. Qd4
{[%clk 0:01:34.1]} 40... f6 {[%clk 0:00:22]} 41. Bf4 {[%clk 0:01:33.9]} 41...
Bxb3 {[%clk 0:00:21.7]} 42. e5 {[%clk 0:01:29.1]} 42... Qc4 {[%clk 0:00:21.1]}
43. Qxc4+ {[%clk 0:01:29.1]} 43... Bxc4 {[%clk 0:00:21.8]} 44. exf6 {[%clk
0:01:31]} 44... Re1+ {[%clk 0:00:21.3]} 45. Kh2 {[%clk 0:01:31.5]} 45... Re2
{[%clk 0:00:22.7]} 46. Kg1 {[%clk 0:01:26.6]} 46... Re1+ {[%clk 0:00:22.7]} 47.
Kh2 {[%clk 0:01:27.9]} 47... Re2 {[%clk 0:00:23.3]} 48. Kg1 {[%clk 0:01:09.7]}
48... gxf6 {[%clk 0:00:24.2]} 49. Bxh6 {[%clk 0:01:10.1]} 49... Kf7 {[%clk
0:00:25.5]} 50. Be3 {[%clk 0:01:09.6]} 50... Kg6 {[%clk 0:00:25.4]} 51. Kh2
{[%clk 0:01:10.5]} 51... f5 {[%clk 0:00:23.9]} 52. Bf3 {[%clk 0:01:03.8]} 52...
Ra2 {[%clk 0:00:23.2]} 53. Kh3 {[%clk 0:01:04.6]} 53... Bf1+ {[%clk 0:00:23.5]}
54. Kh2 {[%clk 0:01:05]} 54... Bd3 {[%clk 0:00:23]} 55. h5+ {[%clk 0:01:05.5]}
55... Kh7 {[%clk 0:00:23.2]} 56. Kh3 {[%clk 0:01:06.5]} 56... Ra4 {[%clk
0:00:24.1]} 57. Bf4 {[%clk 0:01:07.3]} 57... Be4 {[%clk 0:00:19.8]} 58. Bxe4
{[%clk 0:01:08.3]} 58... Rxe4 {[%clk 0:00:21.1]} 59. Kh4 {[%clk 0:01:09.8]}
59... Re2 {[%clk 0:00:21.4]} 60. Be3 {[%clk 0:01:11.1]} 60... f4 {[%clk
0:00:22]} 61. gxf4 {[%clk 0:01:10.4]} 61... Re1 {[%clk 0:00:22.2]} 62. f5 {[%clk
0:01:09.7]} 62... Kg7 {[%clk 0:00:23.5]} 63. Bf4 {[%clk 0:01:06.1]} 63... Kf6
{[%clk 0:00:19]} 64. Kg4 {[%clk 0:01:05.5]} 64... Re4 {[%clk 0:00:16.7]} 65. h6
{[%clk 0:01:01.3]} 65... Ra4 {[%clk 0:00:17.7]} 66. f3 {[%clk 0:00:51.4]} 66...
Rc4 {[%clk 0:00:17.4]} 67. Kh5 {[%clk 0:00:36]} 67... Rxf4 {[%clk 0:00:13.7]}
68. h7 {[%clk 0:00:37.4]} 68... Kg7 {[%clk 0:00:14.3]} 69. Kg5 {[%clk
0:00:38.2]} 69... Rxf3 {[%clk 0:00:15.5]} 70. f6+ {[%clk 0:00:39.7]} 70... Kxh7
{[%clk 0:00:16.7]} 71. f7 {[%clk 0:00:40.5]} 71... Rxf7 {[%clk 0:00:17.3]} 72.
Kh5 {[%clk 0:00:41.9]} 0-1